[Event "*** Titled Tuesday Blitz"]
[Site "Chess.com"]
[Date "2019.11.05"]
[Round "3"]
[White "WPWPWP-2015"]
[Black "Elshan1985"]
[Result "0-1"]
[WhiteElo "2492"]
[BlackElo "2769"]
[TimeControl "180+2"]
[EndTime "13:37:41 PST"]
[Termination "Elshan1985 won by resignation"]

1. e4 {[%clk 0:03:01.9]} 1... e6 {[%clk 0:03:00]} 2. d4 {[%clk 0:03:02.1]} 2...
d5 {[%clk 0:03:01.9]} 3. Nc3 {[%clk 0:03:03.1]} 3... Nf6 {[%clk 0:03:02.1]} 4.
Bg5 {[%clk 0:02:57.6]} 4... dxe4 {[%clk 0:03:02.6]} 5. Nxe4 {[%clk 0:02:58.3]}
5... Be7 {[%clk 0:03:03.9]} 6. Nxf6+ {[%clk 0:02:58.3]} 6... Bxf6 {[%clk
0:03:02.3]} 7. Be3 {[%clk 0:02:59.2]} 7... c5 {[%clk 0:03:01.4]} 8. Nf3 {[%clk
0:02:53.6]} 8... Nc6 {[%clk 0:03:02.1]} 9. dxc5 {[%clk 0:02:31.3]} 9... Bxb2
{[%clk 0:03:02]} 10. Qxd8+ {[%clk 0:02:28.4]} 10... Nxd8 {[%clk 0:03:03.9]} 11.
Rb1 {[%clk 0:02:27.3]} 11... Bc3+ {[%clk 0:03:04.5]} 12. Bd2 {[%clk 0:02:28.2]}
12... Bxd2+ {[%clk 0:03:05.1]} 13. Nxd2 {[%clk 0:02:27.4]} 13... Bd7 {[%clk
0:03:06.5]} 14. Ne4 {[%clk 0:02:26.5]} 14... Bc6 {[%clk 0:03:06.7]} 15. Nd6+
{[%clk 0:02:22.4]} 15... Ke7 {[%clk 0:03:07.9]} 16. Nc4 {[%clk 0:02:14.1]} 16...
Rc8 {[%clk 0:03:04.3]} 17. Na5 {[%clk 0:01:56.4]} 17... Be4 {[%clk 0:03:01.8]}
18. Bd3 {[%clk 0:01:56.2]} 18... Rxc5 {[%clk 0:02:46]} 19. Nb3 {[%clk
0:01:51.3]} 19... Re5 {[%clk 0:02:46]} 20. Kd2 {[%clk 0:01:20.4]} 20... Bxd3
{[%clk 0:02:36.4]} 21. cxd3 {[%clk 0:01:20.8]} 21... Nc6 {[%clk 0:02:37.4]} 22.
Rhc1 {[%clk 0:01:13.6]} 22... Rd8 {[%clk 0:02:38.4]} 23. Nc5 {[%clk 0:00:48.7]}
23... b6 {[%clk 0:02:38.9]} 24. Ne4 {[%clk 0:00:45.6]} 24... Nd4 {[%clk
0:02:31]} 25. Rc7+ {[%clk 0:00:35.3]} 25... Rd7 {[%clk 0:02:32.1]} 26. Rbc1
{[%clk 0:00:28.1]} 26... f5 {[%clk 0:02:29]} 27. Rxd7+ {[%clk 0:00:20.3]} 27...
Kxd7 {[%clk 0:02:29.6]} 28. Nc3 {[%clk 0:00:19.7]} 28... Rc5 {[%clk 0:02:26.6]}
29. Re1 {[%clk 0:00:17.9]} 29... b5 {[%clk 0:02:25.9]} 30. Rb1 {[%clk
0:00:18.3]} 30... a6 {[%clk 0:02:26.8]} 31. f4 {[%clk 0:00:18.6]} 31... h6
{[%clk 0:02:27.2]} 32. g3 {[%clk 0:00:19.4]} 32... Nf3+ {[%clk 0:02:27.4]} 33.
Kc2 {[%clk 0:00:16.8]} 33... Nxh2 {[%clk 0:02:28.5]} 34. a4 {[%clk 0:00:09.3]}
34... bxa4 {[%clk 0:02:23.6]} 35. Rb4 {[%clk 0:00:09.4]} 35... Nf1 {[%clk
0:02:20.3]} 36. Rxa4 {[%clk 0:00:07]} 36... a5 {[%clk 0:02:21.5]} 37. Kb2 {[%clk
0:00:05]} 37... Nxg3 {[%clk 0:02:15.3]} 38. d4 {[%clk 0:00:05.8]} 38... Rc7
{[%clk 0:02:16.3]} 39. Rxa5 {[%clk 0:00:06.8]} 39... Nh5 {[%clk 0:02:17.4]} 40.
Ne2 {[%clk 0:00:05.4]} 40... g5 {[%clk 0:02:16.5]} 41. fxg5 {[%clk 0:00:04.7]}
41... hxg5 {[%clk 0:02:18.4]} 42. Re5 {[%clk 0:00:04.1]} 42... Nf6 {[%clk
0:02:17]} 43. Nc3 {[%clk 0:00:04.6]} 43... g4 {[%clk 0:02:12.3]} 44. d5 {[%clk
0:00:05.2]} 44... Nxd5 {[%clk 0:02:13.3]} 45. Nxd5 {[%clk 0:00:05.8]} 45... exd5
{[%clk 0:02:14.7]} 46. Rxf5 {[%clk 0:00:07.1]} 46... Ke6 {[%clk 0:02:15.6]} 47.
Rg5 {[%clk 0:00:07.9]} 47... Rc4 {[%clk 0:02:16.8]} 48. Kb3 {[%clk 0:00:08.6]}
48... Kf6 {[%clk 0:02:16.7]} 49. Rxd5 {[%clk 0:00:09]} 49... Re4 {[%clk
0:02:14]} 50. Kc3 {[%clk 0:00:05.4]} 50... g3 {[%clk 0:02:15.3]} 51. Rd1 {[%clk
0:00:04.7]} 51... Kf5 {[%clk 0:02:16.1]} 52. Kd3 {[%clk 0:00:05.5]} 52... Re8
{[%clk 0:02:15.9]} 53. Rf1+ {[%clk 0:00:03.6]} 53... Kg4 {[%clk 0:02:17.1]} 54.
Rf7 {[%clk 0:00:04.1]} 54... g2 {[%clk 0:02:18.4]} 55. Rg7+ {[%clk 0:00:05.3]}
55... Kh3 {[%clk 0:02:19.8]} 56. Rh7+ {[%clk 0:00:06.6]} 56... Kg3 {[%clk
0:02:20.9]} 57. Rg7+ {[%clk 0:00:07.9]} 57... Kf2 {[%clk 0:02:22.5]} 58. Rf7+
{[%clk 0:00:09.3]} 58... Kg1 {[%clk 0:02:23.1]} 59. Kd2 {[%clk 0:00:10]} 59...
Rh8 {[%clk 0:02:23.4]} 0-1

[Event "*** Titled Tuesday Blitz"]
[Site "Chess.com"]
[Date "2019.11.05"]
[Round "3"]
[White "FairChess_on_YouTube"]
[Black "Gordima"]
[Result "1-0"]
[WhiteElo "3034"]
[BlackElo "2790"]
[TimeControl "180+2"]
[EndTime "13:37:43 PST"]
[Termination "FairChess_on_YouTube won by resignation"]

1. c4 {[%clk 0:03:01.9]} 1... c6 {[%clk 0:03:01]} 2. Nf3 {[%clk 0:03:00.7]} 2...
d5 {[%clk 0:03:02.4]} 3. e3 {[%clk 0:03:02]} 3... Bg4 {[%clk 0:03:01.6]} 4. cxd5
{[%clk 0:03:00]} 4... cxd5 {[%clk 0:03:03.5]} 5. Qb3 {[%clk 0:03:00.9]} 5... Qc7
{[%clk 0:03:04]} 6. Nc3 {[%clk 0:02:55.1]} 6... Bxf3 {[%clk 0:02:51.6]} 7. gxf3
{[%clk 0:02:55]} 7... e6 {[%clk 0:02:51]} 8. d4 {[%clk 0:02:50.5]} 8... Nc6
{[%clk 0:02:43.6]} 9. Bd2 {[%clk 0:02:49.2]} 9... Nf6 {[%clk 0:02:42.7]} 10. Rc1
{[%clk 0:02:49]} 10... Be7 {[%clk 0:02:37.2]} 11. f4 {[%clk 0:02:49.3]} 11...
O-O {[%clk 0:02:34]} 12. Bd3 {[%clk 0:02:50.2]} 12... Rac8 {[%clk 0:02:19.1]}
13. Ne2 {[%clk 0:02:44.5]} 13... Qd7 {[%clk 0:02:17]} 14. O-O {[%clk 0:02:41.5]}
14... Ne4 {[%clk 0:02:10.7]} 15. Bxe4 {[%clk 0:02:42.4]} 15... dxe4 {[%clk
0:02:11.6]} 16. Ng3 {[%clk 0:02:43.8]} 16... f5 {[%clk 0:02:09.3]} 17. Rfd1
{[%clk 0:02:43.6]} 17... Qd5 {[%clk 0:02:10.1]} 18. Qxb7 {[%clk 0:02:32.6]}
18... Bd6 {[%clk 0:00:58.2]} 19. Kg2 {[%clk 0:02:16.2]} 19... Rc7 {[%clk
0:00:46.2]} 20. Qb3 {[%clk 0:02:16.6]} 20... Ne7 {[%clk 0:00:36.3]} 21. Rxc7
{[%clk 0:02:15.2]} 21... Bxc7 {[%clk 0:00:37.2]} 22. Bb4 {[%clk 0:02:16.3]}
22... Qxb3 {[%clk 0:00:34.5]} 23. axb3 {[%clk 0:02:16.9]} 23... Re8 {[%clk
0:00:34.6]} 24. Bxe7 {[%clk 0:02:15.6]} 24... Rxe7 {[%clk 0:00:35.7]} 25. d5
{[%clk 0:02:16.8]} 25... Rd7 {[%clk 0:00:32]} 26. Rc1 {[%clk 0:02:17.9]} 26...
exd5 {[%clk 0:00:25.9]} 27. Nxf5 {[%clk 0:02:19]} 27... Bb6 {[%clk 0:00:18]} 28.
Rd1 {[%clk 0:02:12.1]} 28... Kf7 {[%clk 0:00:18.2]} 29. f3 {[%clk 0:02:08.5]}
29... exf3+ {[%clk 0:00:16.8]} 30. Kxf3 {[%clk 0:02:10.4]} 30... Ke6 {[%clk
0:00:17]} 31. Nd4+ {[%clk 0:01:56.8]} 31... Bxd4 {[%clk 0:00:07]} 32. Rxd4
{[%clk 0:01:58.7]} 32... Rb7 {[%clk 0:00:08.6]} 33. b4 {[%clk 0:01:59.6]} 33...
a6 {[%clk 0:00:09.2]} 34. e4 {[%clk 0:01:59.5]} 34... dxe4+ {[%clk 0:00:10.2]}
35. Kxe4 {[%clk 0:02:01.4]} 35... g6 {[%clk 0:00:08.5]} 36. Kd3 {[%clk
0:02:02.4]} 36... Rc7 {[%clk 0:00:07]} 37. Rc4 {[%clk 0:02:01.6]} 37... Rd7+
{[%clk 0:00:07.7]} 38. Kc3 {[%clk 0:02:02.4]} 38... Rd6 {[%clk 0:00:08]} 39. Rc5
{[%clk 0:02:02.2]} 39... Kf6 {[%clk 0:00:06.6]} 40. b3 {[%clk 0:01:56.2]} 40...
h5 {[%clk 0:00:05.5]} 41. h4 {[%clk 0:01:51.9]} 41... Rb6 {[%clk 0:00:04.4]} 42.
Kc4 {[%clk 0:01:51.1]} 42... Re6 {[%clk 0:00:03.3]} 43. Ra5 {[%clk 0:01:44.9]}
43... Re4+ {[%clk 0:00:03.6]} 44. Kc5 {[%clk 0:01:43.1]} 44... Rxf4 {[%clk
0:00:05.1]} 45. Rxa6+ {[%clk 0:01:44.2]} 45... Kg7 {[%clk 0:00:06.6]} 46. b5
{[%clk 0:01:45.4]} 46... Rxh4 {[%clk 0:00:06.2]} 47. b6 {[%clk 0:01:46.4]} 47...
Rh3 {[%clk 0:00:07]} 48. b7 {[%clk 0:01:45.2]} 48... Rxb3 {[%clk 0:00:08.1]} 49.
Rb6 {[%clk 0:01:46.3]} 49... Rc3+ {[%clk 0:00:09.7]} 50. Kd4 {[%clk 0:01:46.8]}
50... Rd3+ {[%clk 0:00:08.8]} 1-0

[Event "*** Titled Tuesday Blitz"]
[Site "Chess.com"]
[Date "2019.11.05"]
[Round "3"]
[White "DinaBelenkaya"]
[Black "KL31"]
[Result "0-1"]
[WhiteElo "2296"]
[BlackElo "2510"]
[TimeControl "180+2"]
[EndTime "13:37:52 PST"]
[Termination "KL31 won by resignation"]

1. e4 {[%clk 0:02:59.8]} 1... e6 {[%clk 0:03:00.9]} 2. Qe2 {[%clk 0:02:50.3]}
2... c5 {[%clk 0:03:00.3]} 3. Nf3 {[%clk 0:02:47.4]} 3... Nc6 {[%clk 0:03:01]}
4. g3 {[%clk 0:02:47.4]} 4... g6 {[%clk 0:03:00.9]} 5. Bg2 {[%clk 0:02:48.4]}
5... Bg7 {[%clk 0:03:02.2]} 6. O-O {[%clk 0:02:49.2]} 6... Nge7 {[%clk
0:03:03.3]} 7. c3 {[%clk 0:02:49.4]} 7... d6 {[%clk 0:02:59.4]} 8. Rd1 {[%clk
0:02:46]} 8... e5 {[%clk 0:02:59.3]} 9. Na3 {[%clk 0:02:42.8]} 9... O-O {[%clk
0:02:59.5]} 10. d3 {[%clk 0:02:36.1]} 10... f5 {[%clk 0:02:34.5]} 11. Nc4 {[%clk
0:02:31.8]} 11... h6 {[%clk 0:02:27.3]} 12. a4 {[%clk 0:02:30.8]} 12... Be6
{[%clk 0:02:23]} 13. b3 {[%clk 0:02:13.1]} 13... Qc7 {[%clk 0:02:08.2]} 14. Bb2
{[%clk 0:02:13.4]} 14... f4 {[%clk 0:02:03.1]} 15. d4 {[%clk 0:02:12.1]} 15...
exd4 {[%clk 0:01:38.4]} 16. cxd4 {[%clk 0:02:12.5]} 16... Bg4 {[%clk 0:01:39.4]}
17. dxc5 {[%clk 0:02:08]} 17... dxc5 {[%clk 0:01:29.9]} 18. Bxg7 {[%clk
0:02:07.1]} 18... Kxg7 {[%clk 0:01:31.8]} 19. Qb2+ {[%clk 0:02:07.9]} 19... Kh7
{[%clk 0:01:29.6]} 20. Rd3 {[%clk 0:01:51.4]} 20... fxg3 {[%clk 0:01:26.1]} 21.
hxg3 {[%clk 0:01:49.8]} 21... Bxf3 {[%clk 0:01:15.8]} 22. Bxf3 {[%clk
0:01:41.1]} 22... Nd4 {[%clk 0:01:16.6]} 23. Bg2 {[%clk 0:01:41.6]} 23... Nec6
{[%clk 0:01:14.4]} 24. f4 {[%clk 0:01:36.3]} 24... Nb4 {[%clk 0:01:09.2]} 25.
Rd2 {[%clk 0:01:32]} 25... g5 {[%clk 0:00:58.4]} 26. e5 {[%clk 0:01:14]} 26...
gxf4 {[%clk 0:00:59.7]} 27. Be4+ {[%clk 0:01:10.2]} 27... Kh8 {[%clk 0:01:01.1]}
28. Rxd4 {[%clk 0:01:08.8]} 28... cxd4 {[%clk 0:00:58]} 29. Qxd4 {[%clk
0:01:08.6]} 29... Qg7 {[%clk 0:00:56.4]} 30. Ra2 {[%clk 0:00:52.3]} 30... Rad8
{[%clk 0:00:51.2]} 31. Nd6 {[%clk 0:00:52.1]} 31... Nc6 {[%clk 0:00:42.8]} 32.
Bxc6 {[%clk 0:00:48.8]} 32... bxc6 {[%clk 0:00:44.7]} 33. Rg2 {[%clk 0:00:49.6]}
33... fxg3 {[%clk 0:00:43]} 34. Qe3 {[%clk 0:00:35.3]} 34... Rxd6 {[%clk
0:00:34.8]} 35. Rxg3 {[%clk 0:00:27.5]} 35... Rg6 {[%clk 0:00:35.5]} 36. Kh2
{[%clk 0:00:19.2]} 36... Rxg3 {[%clk 0:00:35.7]} 37. Qxg3 {[%clk 0:00:20.2]}
37... Qxg3+ {[%clk 0:00:37.1]} 38. Kxg3 {[%clk 0:00:21.5]} 38... Kg7 {[%clk
0:00:38.6]} 39. Kg4 {[%clk 0:00:22]} 39... Kg6 {[%clk 0:00:39.7]} 40. Kh4 {[%clk
0:00:21.6]} 40... Kf5 {[%clk 0:00:40.3]} 0-1

[Event "*** Titled Tuesday Blitz"]
[Site "Chess.com"]
[Date "2019.11.05"]
[Round "3"]
[White "Kazan28"]
[Black "isla88"]
[Result "1/2-1/2"]
[WhiteElo "2358"]
[BlackElo "2175"]
[TimeControl "180+2"]
[EndTime "13:37:53 PST"]
[Termination "Game drawn by repetition"]

1. e4 {[%clk 0:02:25.2]} 1... d6 {[%clk 0:02:56.2]} 2. d4 {[%clk 0:02:23.8]}
2... Nf6 {[%clk 0:02:53.8]} 3. f3 {[%clk 0:02:23.6]} 3... e5 {[%clk 0:02:52.3]}
4. d5 {[%clk 0:02:17.8]} 4... c6 {[%clk 0:02:47.9]} 5. c4 {[%clk 0:02:18.2]}
5... cxd5 {[%clk 0:02:48.6]} 6. cxd5 {[%clk 0:02:18.2]} 6... g6 {[%clk
0:02:50.1]} 7. Nc3 {[%clk 0:02:18.9]} 7... Bg7 {[%clk 0:02:51.1]} 8. Be3 {[%clk
0:02:20.8]} 8... O-O {[%clk 0:02:51.9]} 9. Qd2 {[%clk 0:02:22.7]} 9... Nbd7
{[%clk 0:02:49.4]} 10. Nh3 {[%clk 0:02:17.6]} 10... a6 {[%clk 0:02:30.4]} 11.
Bd3 {[%clk 0:02:12.1]} 11... b5 {[%clk 0:02:26.7]} 12. Nf2 {[%clk 0:02:12.6]}
12... Nh5 {[%clk 0:02:22]} 13. b4 {[%clk 0:02:09.6]} 13... Nf4 {[%clk
0:02:20.2]} 14. O-O {[%clk 0:02:07.6]} 14... Nb6 {[%clk 0:02:15.1]} 15. Rfc1
{[%clk 0:02:07.2]} 15... Nxd3 {[%clk 0:02:13.4]} 16. Qxd3 {[%clk 0:02:09.1]}
16... Nc4 {[%clk 0:02:13.8]} 17. a4 {[%clk 0:02:10.5]} 17... Nxe3 {[%clk
0:02:11.2]} 18. Qxe3 {[%clk 0:02:12.4]} 18... Bd7 {[%clk 0:02:06.9]} 19. axb5
{[%clk 0:02:05.9]} 19... axb5 {[%clk 0:02:07.3]} 20. Nd3 {[%clk 0:01:45.6]}
20... f5 {[%clk 0:01:58.6]} 21. h3 {[%clk 0:01:38.5]} 21... h5 {[%clk 0:01:57]}
22. Rf1 {[%clk 0:01:33.9]} 22... f4 {[%clk 0:01:55.5]} 23. Qf2 {[%clk
0:01:33.7]} 23... g5 {[%clk 0:01:56.6]} 24. Rxa8 {[%clk 0:01:34.4]} 24... Qxa8
{[%clk 0:01:55.8]} 25. Qb6 {[%clk 0:01:36.3]} 25... Qa3 {[%clk 0:01:51.2]} 26.
Rc1 {[%clk 0:01:16.3]} 26... Rc8 {[%clk 0:01:42.5]} 27. Qxd6 {[%clk 0:01:14.2]}
27... Rxc3 {[%clk 0:01:37.2]} 28. Qxd7 {[%clk 0:01:15.1]} 28... Rxc1+ {[%clk
0:01:37.3]} 29. Nxc1 {[%clk 0:01:17]} 29... Qxc1+ {[%clk 0:01:38.2]} 30. Kh2
{[%clk 0:01:18.9]} 30... Qc4 {[%clk 0:01:22.4]} 31. Qe8+ {[%clk 0:01:17.3]}
31... Bf8 {[%clk 0:01:14]} 32. Qg6+ {[%clk 0:01:14.8]} 32... Bg7 {[%clk
0:01:12.9]} 33. Qe8+ {[%clk 0:01:15.8]} 33... Kh7 {[%clk 0:01:10]} 34. Qxh5+
{[%clk 0:01:16.3]} 34... Bh6 {[%clk 0:01:10.8]} 35. Qf7+ {[%clk 0:01:16.8]}
35... Kh8 {[%clk 0:01:10.9]} 36. Qe8+ {[%clk 0:01:08.2]} 36... Kg7 {[%clk
0:01:09.7]} 37. Qe7+ {[%clk 0:01:08.7]} 37... Kg6 {[%clk 0:01:08.3]} 38. Qe8+
{[%clk 0:01:08.4]} 38... Kh7 {[%clk 0:01:08.3]} 39. d6 {[%clk 0:01:09.5]} 39...
Qxb4 {[%clk 0:00:54.7]} 40. Qf7+ {[%clk 0:01:06.8]} 40... Bg7 {[%clk 0:00:52.9]}
41. Qf5+ {[%clk 0:01:07]} 41... Kh6 {[%clk 0:00:52.9]} 42. Qe6+ {[%clk
0:01:07.9]} 42... Kh7 {[%clk 0:00:53.8]} 43. d7 {[%clk 0:01:07.2]} 43... Qe1
{[%clk 0:00:53]} 44. Qf5+ {[%clk 0:01:06.1]} 44... Kh6 {[%clk 0:00:53.7]} 45.
Qe6+ {[%clk 0:01:04.6]} 45... Kh7 {[%clk 0:00:54.4]} 46. Qf5+ {[%clk 0:00:49.2]}
46... Kh6 {[%clk 0:00:54.7]} 47. Qe6+ {[%clk 0:00:40.3]} 47... Kh7 {[%clk
0:00:55]} 1/2-1/2

[Event "*** Titled Tuesday Blitz"]
[Site "Chess.com"]
[Date "2019.11.05"]
[Round "3"]
[White "medalja"]
[Black "DACF2905"]
[Result "1-0"]
[WhiteElo "2399"]
[BlackElo "2184"]
[TimeControl "180+2"]
[EndTime "13:37:58 PST"]
[Termination "medalja won by checkmate"]

1. Nf3 {[%clk 0:03:01.9]} 1... d5 {[%clk 0:02:59.8]} 2. d4 {[%clk 0:03:01.5]}
2... Nf6 {[%clk 0:03:00.1]} 3. c4 {[%clk 0:03:02.7]} 3... e6 {[%clk 0:03:00.3]}
4. g3 {[%clk 0:03:01.7]} 4... Be7 {[%clk 0:02:58.9]} 5. Bg2 {[%clk 0:03:03.2]}
5... c6 {[%clk 0:02:59.8]} 6. O-O {[%clk 0:03:04.4]} 6... O-O {[%clk 0:02:59.9]}
7. Qc2 {[%clk 0:03:06]} 7... Nbd7 {[%clk 0:02:58.6]} 8. Bf4 {[%clk 0:03:06.9]}
8... Re8 {[%clk 0:02:59.2]} 9. Nbd2 {[%clk 0:03:02.5]} 9... dxc4 {[%clk
0:03:00.1]} 10. Nxc4 {[%clk 0:03:03.2]} 10... Nb6 {[%clk 0:02:59.8]} 11. b3
{[%clk 0:03:00.4]} 11... c5 {[%clk 0:02:57.9]} 12. Rad1 {[%clk 0:02:59.6]} 12...
Nbd5 {[%clk 0:02:48.7]} 13. dxc5 {[%clk 0:02:56.9]} 13... Bd7 {[%clk 0:02:43.2]}
14. Bd6 {[%clk 0:02:56.1]} 14... Rc8 {[%clk 0:02:41.8]} 15. e4 {[%clk
0:02:53.9]} 15... Nb4 {[%clk 0:02:25.4]} 16. Qe2 {[%clk 0:02:52.5]} 16... Bb5
{[%clk 0:01:52.9]} 17. a4 {[%clk 0:02:24.7]} 17... Bxc4 {[%clk 0:01:53.4]} 18.
Qxc4 {[%clk 0:02:26.6]} 18... Nc6 {[%clk 0:01:54.1]} 19. e5 {[%clk 0:02:12.4]}
19... Nd5 {[%clk 0:01:53.7]} 20. h4 {[%clk 0:02:10.2]} 20... Bxd6 {[%clk
0:01:52.4]} 21. exd6 {[%clk 0:02:08.5]} 21... b6 {[%clk 0:01:45.9]} 22. Ng5
{[%clk 0:02:05.7]} 22... Na5 {[%clk 0:01:33.1]} 23. Qd3 {[%clk 0:01:52.4]} 23...
g6 {[%clk 0:01:17.2]} 24. Bxd5 {[%clk 0:01:44.7]} 24... exd5 {[%clk 0:01:18.2]}
25. b4 {[%clk 0:01:45.6]} 25... Nc6 {[%clk 0:01:08.2]} 26. Qxd5 {[%clk
0:01:46.4]} 26... Qd7 {[%clk 0:01:09.4]} 27. cxb6 {[%clk 0:01:43.3]} 27... axb6
{[%clk 0:01:07.7]} 28. Nxf7 {[%clk 0:01:43.4]} 28... Nxb4 {[%clk 0:00:58.9]} 29.
Nh6+ {[%clk 0:01:40]} 29... Kg7 {[%clk 0:00:58.6]} 30. Qd4+ {[%clk 0:01:37.7]}
30... Kxh6 {[%clk 0:00:59.2]} 31. Qxb4 {[%clk 0:01:38.6]} 31... Rc6 {[%clk
0:00:56.7]} 32. Rd5 {[%clk 0:01:19.1]} 32... Re2 {[%clk 0:00:46.1]} 33. Qf4+
{[%clk 0:01:03.7]} 33... Kg7 {[%clk 0:00:46.1]} 34. h5 {[%clk 0:01:05.4]} 34...
Re6 {[%clk 0:00:21.5]} 35. h6+ {[%clk 0:00:58.2]} 35... Kg8 {[%clk 0:00:22.7]}
36. Rfd1 {[%clk 0:00:59.9]} 36... Rc8 {[%clk 0:00:20.3]} 37. Qd4 {[%clk
0:00:55.8]} 37... Rf8 {[%clk 0:00:20.9]} 38. Qxb6 {[%clk 0:00:56.7]} 38... Ref6
{[%clk 0:00:20.1]} 39. R5d2 {[%clk 0:00:54.4]} 39... g5 {[%clk 0:00:18.4]} 40.
Qc7 {[%clk 0:00:54.9]} 40... Qh3 {[%clk 0:00:17.3]} 41. Qg7# {[%clk 0:00:54.5]}
1-0

[Event "*** Titled Tuesday Blitz"]
[Site "Chess.com"]
[Date "2019.11.05"]
[Round "3"]
[White "MartinZumsande"]
[Black "cherryandmint"]
[Result "1-0"]
[WhiteElo "2562"]
[BlackElo "2822"]
[TimeControl "180+2"]
[EndTime "13:38:00 PST"]
[Termination "MartinZumsande won by resignation"]

1. e4 {[%clk 0:03:01.9]} 1... e5 {[%clk 0:02:46.4]} 2. Nf3 {[%clk 0:03:02.4]}
2... Nc6 {[%clk 0:02:47.3]} 3. Bc4 {[%clk 0:03:03.9]} 3... Nf6 {[%clk
0:02:47.7]} 4. d3 {[%clk 0:03:04.4]} 4... Bc5 {[%clk 0:02:48.3]} 5. O-O {[%clk
0:03:05]} 5... O-O {[%clk 0:02:48.2]} 6. a4 {[%clk 0:03:06.2]} 6... d6 {[%clk
0:02:46.1]} 7. c3 {[%clk 0:03:06.7]} 7... a5 {[%clk 0:02:41.1]} 8. Bg5 {[%clk
0:03:07.4]} 8... h6 {[%clk 0:02:40.6]} 9. Bh4 {[%clk 0:03:09]} 9... g5 {[%clk
0:02:39.5]} 10. Bg3 {[%clk 0:03:10.6]} 10... Bb6 {[%clk 0:02:31.9]} 11. Na3
{[%clk 0:03:03.1]} 11... Bg4 {[%clk 0:02:32.4]} 12. Nc2 {[%clk 0:03:03.8]} 12...
Nh5 {[%clk 0:02:32.3]} 13. Kh1 {[%clk 0:02:59.1]} 13... Kg7 {[%clk 0:02:25.5]}
14. h3 {[%clk 0:02:47.2]} 14... Nxg3+ {[%clk 0:02:14.2]} 15. fxg3 {[%clk
0:02:48.3]} 15... Be6 {[%clk 0:02:15.6]} 16. Bxe6 {[%clk 0:02:31.7]} 16... fxe6
{[%clk 0:02:16.1]} 17. Nh2 {[%clk 0:02:19.8]} 17... Rxf1+ {[%clk 0:02:06.3]} 18.
Qxf1 {[%clk 0:02:20.2]} 18... Qe8 {[%clk 0:02:07.5]} 19. Qe2 {[%clk 0:02:04.6]}
19... Ne7 {[%clk 0:02:08]} 20. Ne3 {[%clk 0:02:00.5]} 20... Bxe3 {[%clk
0:01:43]} 21. Qxe3 {[%clk 0:02:01.4]} 21... Ng8 {[%clk 0:01:44.9]} 22. Ng4
{[%clk 0:01:53.5]} 22... Qg6 {[%clk 0:01:42.4]} 23. Rf1 {[%clk 0:01:48.9]} 23...
h5 {[%clk 0:01:42.5]} 24. Nh2 {[%clk 0:01:47.4]} 24... Nf6 {[%clk 0:01:37]} 25.
Nf3 {[%clk 0:01:44.5]} 25... Nh7 {[%clk 0:01:34.9]} 26. d4 {[%clk 0:01:41]}
26... exd4 {[%clk 0:01:15.6]} 27. Nxd4 {[%clk 0:01:32.8]} 27... Rf8 {[%clk
0:00:59.7]} 28. Rxf8 {[%clk 0:01:29.8]} 28... Kxf8 {[%clk 0:00:57.9]} 29. e5
{[%clk 0:01:21.1]} 29... Ke7 {[%clk 0:00:19.1]} 30. exd6+ {[%clk 0:01:11.1]}
30... cxd6 {[%clk 0:00:21]} 31. Nb5 {[%clk 0:01:12.3]} 31... h4 {[%clk
0:00:22.2]} 32. gxh4 {[%clk 0:01:01.6]} 32... gxh4 {[%clk 0:00:23.4]} 33. Qb6
{[%clk 0:01:02.7]} 33... Qg3 {[%clk 0:00:24.3]} 34. Qc7+ {[%clk 0:00:45]} 34...
Kf6 {[%clk 0:00:24]} 35. Qxd6 {[%clk 0:00:46.1]} 35... Qe1+ {[%clk 0:00:21.9]}
36. Kh2 {[%clk 0:00:46.7]} 36... Ng5 {[%clk 0:00:23.3]} 37. Qf4+ {[%clk
0:00:42.5]} 37... Kg6 {[%clk 0:00:22.3]} 38. Nd4 {[%clk 0:00:41.9]} 38... e5
{[%clk 0:00:15.4]} 39. Qxg5+ {[%clk 0:00:42.2]} 1-0